bitfinex/quotes_BTCUSD_20250610
["timestamp","ask_amount","ask_price","bid_price","bid_amount"]
[1749559139847,0.51840105,109450.0,109440.0,0.19246637]
[1749559140252,0.51840105,109450.0,109440.0,0.17535206]
[1749559140486,0.51840105,109450.0,109440.0,0.19246635]
[1749559140778,0.51840105,109450.0,109440.0,0.20102327]
[1749559141322,0.51840105,109450.0,109440.0,0.19246635]
[1749559141529,0.51840105,109450.0,109440.0,0.20102279]
[1749559141950,0.0134,109450.0,109440.0,0.20102279]
[1749559142203,0.51840105,109450.0,109440.0,0.20102271]
[1749559142586,0.51840105,109450.0,109440.0,0.1924658]
[1749559142786,0.0134,109450.0,109440.0,0.20102267]
[1749559142999,0.51840105,109450.0,109440.0,0.20102267]
[1749559144572,0.51840105,109450.0,109440.0,0.20102184]
[1749559144785,0.51840105,109450.0,109440.0,0.18390851]
[1749559144980,0.51840105,109450.0,109440.0,0.20102142]
[1749559145186,0.51840105,109450.0,109440.0,0.20102164]
[1749559145382,0.51840105,109450.0,109440.0,0.20102207]
[1749559146045,0.51840105,109450.0,109440.0,0.18342873]
[1749559146462,0.51840105,109450.0,109440.0,0.09450531]
[1749559146667,0.51840105,109450.0,109440.0,0.18342868]
[1749559146845,0.51840105,109450.0,109440.0,0.10306193]
[1749559147090,0.51840105,109450.0,109440.0,0.20054193]
[1749559147646,0.51840105,109450.0,109440.0,0.20054316]
[1749559147962,0.51840105,109450.0,109440.0,0.10306573]
[1749559148168,0.51840105,109450.0,109440.0,0.23705845]
[1749559148591,0.51840105,109450.0,109440.0,0.23705956]
[1749559149188,0.51840105,109450.0,109440.0,0.2285013]
[1749559149373,0.51840105,109450.0,109440.0,0.23705956]
[1749559150548,0.51840105,109450.0,109440.0,0.23706125]
[1749559150974,0.0134,109450.0,109440.0,0.23706209]
[1749559151138,0.51840105,109450.0,109440.0,0.21994388]
[1749559151332,0.51840105,109450.0,109440.0,0.23706209]
[1749559152365,0.51840105,109450.0,109440.0,0.20054937]
[1749559152760,0.51840105,109450.0,109440.0,0.20054851]
[1749559152959,0.51840105,109450.0,109440.0,0.18343118]
[1749559153168,0.0134,109450.0,109440.0,0.1834312]
[1749559153365,0.51840105,109450.0,109440.0,0.20054944]
[1749559153599,0.51840105,109450.0,109440.0,0.20054941]
[1749559154162,0.51840105,109450.0,109440.0,0.18343138]
[1749559154363,0.51840105,109450.0,109440.0,0.17487206]
[1749559154585,0.51840105,109450.0,109440.0,0.20055002]
[1749559155749,0.0134,109450.0,109440.0,0.20055002]
[1749559155909,0.51840105,109450.0,109440.0,0.20055064]
[1749559156189,0.51840105,109450.0,109440.0,0.20055189]
[1749559156550,0.51840105,109450.0,109440.0,0.2005522]
[1749559156930,0.51840105,109450.0,109440.0,0.1030722]
[1749559157130,0.51840105,109450.0,109440.0,0.2005522]
[1749559157345,0.51840105,109450.0,109440.0,0.20055221]
[1749559157546,0.0134,109450.0,109440.0,0.70555341]
[1749559157753,0.51840105,109450.0,109440.0,0.20055188]
[1749559158090,0.51840105,109450.0,109440.0,0.20055145]
[1749559159304,0.51840105,109450.0,109440.0,0.20055155]
[1749559159463,0.51840105,109450.0,109440.0,0.19199176]
[1749559159863,0.51840105,109450.0,109440.0,0.2005516]
[1749559160819,0.51840105,109450.0,109440.0,0.20055129]
[1749559161019,0.0134,109450.0,109440.0,0.20055129]
[1749559161244,0.51840105,109450.0,109440.0,0.20055129]
[1749559161650,0.51840105,109450.0,109440.0,0.20055139]
[1749559162363,0.51840105,109450.0,109440.0,0.20055111]
[1749559162577,0.51840105,109450.0,109440.0,0.19199126]
[1749559162786,0.51840105,109450.0,109440.0,0.18141957]
[1749559163201,0.51840105,109450.0,109440.0,0.19853876]
[1749559163406,0.51840105,109450.0,109440.0,0.19853877]
[1749559164333,0.51840105,109450.0,109440.0,0.19853847]
[1749559164537,0.51840105,109450.0,109440.0,0.18997897]
[1749559164759,0.51840105,109450.0,109440.0,0.19853848]
[1749559165585,0.51840105,109450.0,109440.0,0.19853827]
[1749559165997,0.51840105,109450.0,109440.0,0.18997898]
[1749559166205,0.51840105,109450.0,109440.0,0.19853805]
[1749559166717,0.51840105,109450.0,109440.0,0.19853804]
[1749559167128,0.51840105,109450.0,109440.0,0.19853808]
[1749559167327,0.0134,109450.0,109440.0,0.19853788]
[1749559167529,0.51840105,109450.0,109440.0,0.19853788]
[1749559168098,0.51840105,109450.0,109440.0,0.18997869]
[1749559168288,0.51840105,109450.0,109440.0,0.19853763]
[1749559168707,0.51840105,109450.0,109440.0,0.19853794]
[1749559168907,0.0134,109450.0,109440.0,0.10105794]
[1749559169111,0.0134,109450.0,109440.0,0.18997872]
[1749559169315,0.51840105,109450.0,109440.0,0.19853823]
[1749559169731,0.51840105,109450.0,109440.0,0.19853828]
[1749559169937,0.51840105,109450.0,109440.0,0.18141953]
[1749559170144,0.51840105,109450.0,109440.0,0.19853828]
[1749559170346,0.51840105,109450.0,109440.0,0.19853825]
[1749559171404,0.0134,109450.0,109440.0,0.18141938]
[1749559171612,0.51840105,109450.0,109440.0,0.19853802]
[1749559171814,0.0134,109450.0,109440.0,0.17285997]
[1749559172014,0.51840105,109450.0,109440.0,0.18997865]
[1749559172212,0.51840105,109450.0,109440.0,0.19853799]
[1749559172641,0.0134,109450.0,109440.0,0.19853804]
[1749559172787,0.51840105,109450.0,109440.0,0.19853804]
[1749559173189,0.51840105,109450.0,109440.0,0.18141934]
[1749559173387,0.0134,109450.0,109440.0,0.19853808]
[1749559173592,0.51840105,109450.0,109440.0,0.19853808]
[1749559174212,0.0134,109450.0,109440.0,0.19853808]
[1749559174417,0.51840105,109450.0,109440.0,0.19853808]
[1749559174659,0.0134,109450.0,109440.0,0.64901116]
[1749559174865,0.0134,109450.0,109440.0,0.21694495]
[1749559175087,0.0134,109450.0,109440.0,0.721946]
[1749559175281,0.50700105,109470.0,109440.0,1.25721421]
[1749559175282,0.002,109470.0,109440.0,1.25721421]
[1749559175460,0.002,109470.0,109460.0,0.09129493]
[1749559175663,0.50700105,109470.0,109460.0,0.23430267]
[1749559175858,0.50700105,109470.0,109460.0,0.22574431]
[1749559176354,0.50700105,109470.0,109460.0,0.23430222]
[1749559176525,0.50700105,109470.0,109460.0,0.23428504]
[1749559176701,0.50700105,109470.0,109460.0,0.23427723]
[1749559176902,0.50700105,109470.0,109460.0,0.22572713]
[1749559177113,0.50700105,109470.0,109460.0,0.23427715]
[1749559178132,0.50700105,109470.0,109460.0,0.23427323]
[1749559178326,0.50700105,109470.0,109460.0,0.23427325]
[1749559178527,0.50700105,109470.0,109460.0,0.23426499]
[1749559178761,0.50700105,109470.0,109460.0,0.23426481]
[1749559179687,0.50700105,109470.0,109460.0,0.17948785]
[1749559180144,0.50700105,109470.0,109460.0,0.17948135]
[1749559180401,0.50700105,109470.0,109460.0,0.16239371]
[1749559180655,0.50700105,109470.0,109460.0,0.17948119]
[1749559181107,0.50700105,109470.0,109460.0,0.17948109]
[1749559181547,0.50700105,109470.0,109460.0,0.17947886]
[1749559181779,0.50700105,109470.0,109460.0,0.16239253]
[1749559182009,0.50700105,109470.0,109460.0,0.1709351]
[1749559182218,0.50700105,109470.0,109460.0,0.16239265]
[1749559182426,0.50700105,109470.0,109460.0,0.17947802]
[1749559182633,0.002,109470.0,109460.0,0.17947802]
[1749559182833,0.50700105,109470.0,109460.0,0.17947802]
[1749559183243,0.50700105,109470.0,109460.0,0.16239265]
[1749559183447,0.50700105,109470.0,109460.0,0.16239264]
[1749559183592,0.50700105,109470.0,109460.0,0.20681634]
[1749559184020,0.50700105,109470.0,109460.0,0.20681546]
[1749559184806,0.50700105,109470.0,109460.0,0.1897307]
[1749559185006,0.50700105,109470.0,109460.0,0.19827186]
[1749559185135,0.002,109470.0,109460.0,0.20681367]
[1749559185339,0.50700105,109470.0,109460.0,0.19827186]
[1749559185546,0.50700105,109470.0,109460.0,0.20681367]
[1749559186347,0.50700105,109470.0,109460.0,0.20681347]
[1749559186557,0.50700105,109470.0,109460.0,0.17947512]
[1749559187862,0.50700105,109470.0,109460.0,0.17947506]
[1749559188227,0.50700105,109470.0,109460.0,0.17947424]
[1749559188430,0.50700105,109470.0,109460.0,0.17947405]
[1749559188758,0.50700105,109470.0,109460.0,0.16239133]
[1749559188996,0.50700105,109470.0,109460.0,0.15384997]
[1749559189206,0.002,109470.0,109460.0,0.1794735]
[1749559189425,0.50700105,109470.0,109460.0,0.19826579]
[1749559189889,0.50700105,109470.0,109460.0,0.19826583]
[1749559190538,0.50700105,109470.0,109460.0,0.17093232]
[1749559190750,0.50700105,109470.0,109460.0,0.15384997]
[1749559190963,0.50700105,109470.0,109460.0,0.1709323]
[1749559191181,0.50700105,109470.0,109460.0,0.19826539]
[1749559191431,0.50700105,109470.0,109460.0,0.17093252]
[1749559192098,0.50700105,109470.0,109460.0,0.17093262]
[1749559192306,0.002,109470.0,109460.0,0.17093262]
[1749559192537,0.50700105,109470.0,109460.0,0.17093262]
[1749559193434,0.50700105,109470.0,109460.0,0.17093242]
[1749559193654,0.50700105,109470.0,109460.0,0.17947364]
[1749559193865,0.50700105,109470.0,109460.0,0.15384997]
[1749559194166,0.50700105,109470.0,109460.0,0.16239119]
[1749559194404,0.50700105,109470.0,109460.0,0.23425132]
[1749559194634,0.50700105,109470.0,109460.0,0.23425167]
[1749559195008,0.50700105,109470.0,109460.0,0.23425176]
[1749559195558,0.50700105,109470.0,109460.0,0.23425191]
[1749559195739,0.002,109470.0,109460.0,0.2342534]
[1749559195949,0.50700105,109470.0,109460.0,0.20862693]
[1749559196106,0.50700105,109470.0,109460.0,0.23425414]
[1749559196323,0.002,109470.0,109460.0,0.23425414]
[1749559196524,0.50700105,109470.0,109460.0,0.23425414]
[1749559196710,0.002,109470.0,109460.0,0.23425414]
[1749559196926,0.002,109470.0,109460.0,0.21716939]
[1749559197205,0.50700105,109470.0,109460.0,0.23425432]
[1749559197398,0.50700105,109470.0,109460.0,0.21916939]
[1749559197399,0.002,109470.0,109460.0,0.21916939]
[1749559197526,0.002,109470.0,109460.0,0.23625429]
[1749559197933,0.002,109470.0,109460.0,0.23425429]
[1749559198578,0.002,109470.0,109460.0,0.23425442]
[1749559198760,0.002,109470.0,109460.0,0.22671498]
[1749559198958,0.002,109470.0,109460.0,0.235259]
[1749559199223,0.002,109470.0,109460.0,0.234259]
[1749559199406,0.003,109470.0,109460.0,0.21717095]
[1749559199831,0.003,109470.0,109460.0,0.19774103]
[1749559200429,0.50800105,109470.0,109460.0,0.19774103]
[1749559200675,0.003,109470.0,109460.0,0.19774103]
[1749559200881,0.003,109470.0,109460.0,0.18065298]
[1749559201050,0.003,109470.0,109460.0,0.19774626]
[1749559201249,0.003,109470.0,109460.0,0.19774888]
[1749559201665,0.003,109470.0,109460.0,0.1806556]
[1749559201885,0.003,109470.0,109460.0,0.1977488]
[1749559202741,0.003,109470.0,109460.0,0.18065913]
[1749559202942,0.003,109470.0,109460.0,0.19775951]
[1749559203142,0.003,109470.0,109460.0,0.79411388]
[1749559203355,0.003,109470.0,109460.0,0.73078671]
[1749559204476,0.003,109470.0,109460.0,0.2086854]
[1749559204670,0.003,109470.0,109460.0,0.20125482]
[1749559204898,0.50800105,109470.0,109460.0,0.18414024]
[1749559205099,0.50700105,109470.0,109460.0,0.29869485]
[1749559205305,0.002,109470.0,109460.0,0.29869485]
[1749559205719,0.50700105,109470.0,109460.0,0.69869485]
[1749559206144,0.50800105,109470.0,109460.0,0.69869485]
[1749559206348,0.50800105,109470.0,109460.0,0.69869044]
[1749559206516,0.50800105,109470.0,109460.0,0.68158024]
[1749559206998,0.50800105,109470.0,109460.0,0.58414024]
[1749559207175,0.50800105,109470.0,109460.0,0.69869045]
[1749559207372,0.50800105,109470.0,109460.0,0.69969045]
[1749559207651,0.50800105,109470.0,109460.0,0.61080433]
[1749559207858,0.50800105,109470.0,109460.0,0.70724433]
[1749559208097,0.50800105,109470.0,109460.0,0.63430935]
[1749559208498,0.50800105,109470.0,109460.0,0.51975914]
[1749559208701,0.50800105,109470.0,109460.0,0.61719914]
[1749559208904,0.50800105,109470.0,109460.0,0.63430661]
[1749559209381,0.50800105,109470.0,109460.0,0.63430513]
[1749559210066,0.50800105,109470.0,109460.0,0.61719839]
[1749559210424,0.50800105,109470.0,109460.0,0.62575129]
[1749559210647,0.50800105,109470.0,109460.0,0.63430423]
[1749559210818,0.50800105,109470.0,109460.0,0.23430423]
[1749559211201,0.50800105,109470.0,109460.0,0.23430434]
[1749559211403,0.50800105,109470.0,109460.0,0.44551094]
[1749559211602,0.50800105,109470.0,109460.0,0.14295037]
[1749559211809,0.50800105,109470.0,109460.0,0.117292]
[1749559212012,0.50800105,109470.0,109460.0,0.14295007]
[1749559212214,0.50800105,109470.0,109460.0,0.14295015]
[1749559212826,0.50800105,109470.0,109460.0,0.12584469]
[1749559212972,0.50800105,109470.0,109460.0,0.14295015]
[1749559213213,0.50800105,109470.0,109460.0,0.14295019]
[1749559213390,0.50800105,109470.0,109460.0,0.12584462]
[1749559213575,0.50800105,109470.0,109460.0,0.14294986]
[1749559213776,0.003,109470.0,109460.0,0.117292]
[1749559213986,0.003,109470.0,109460.0,0.12584462]
[1749559214337,0.50800105,109470.0,109460.0,0.14294986]
[1749559215287,0.50800105,109470.0,109460.0,0.14295003]
[1749559215496,0.50800105,109470.0,109460.0,0.117292]
[1749559215867,0.50800105,109470.0,109460.0,0.12584479]
[1749559216071,0.50800105,109470.0,109460.0,0.14295038]
[1749559217094,0.50800105,109470.0,109460.0,0.12584479]
[1749559217323,0.50800105,109470.0,109460.0,0.117292]
[1749559217507,0.50800105,109470.0,109460.0,0.12584528]
[1749559217907,0.50800105,109470.0,109460.0,0.14295184]
[1749559218167,0.003,109470.0,109460.0,0.14295184]
[1749559218941,0.003,109470.0,109460.0,0.12584528]
[1749559219228,0.003,109470.0,109460.0,0.14295353]
[1749559219463,0.003,109470.0,109460.0,0.117292]
[1749559219663,0.003,109470.0,109460.0,0.21588837]
[1749559220517,0.003,109470.0,109460.0,0.21588847]
[1749559220951,0.003,109470.0,109460.0,0.19878078]
[1749559221146,0.003,109470.0,109460.0,0.20733472]
[1749559221358,0.003,109470.0,109460.0,0.21589118]
[1749559221774,0.003,109470.0,109460.0,0.19878162]
[1749559221982,0.003,109470.0,109460.0,0.2073364]
[1749559222612,0.003,109470.0,109460.0,0.20733664]
[1749559223258,0.003,109470.0,109460.0,0.20733799]
[1749559223915,0.50800105,109470.0,109460.0,0.20733827]
[1749559225010,0.50800105,109470.0,109460.0,0.19022684]
[1749559225211,0.50800105,109470.0,109460.0,0.20733972]
[1749559225425,0.003,109470.0,109460.0,0.20733972]
[1749559225633,0.50800105,109470.0,109460.0,0.20733972]
[1749559226503,0.50800105,109470.0,109460.0,0.20734164]
[1749559228153,0.50800105,109470.0,109460.0,0.20734191]
[1749559228357,0.50800105,109470.0,109460.0,0.19022684]
[1749559228816,0.50800105,109470.0,109460.0,0.20734359]
[1749559229874,0.003,109470.0,109460.0,0.20734359]
[1749559230590,0.50800105,109470.0,109460.0,0.2073458]
[1749559230796,0.003,109470.0,109460.0,0.2073458]
[1749559231038,0.50800105,109470.0,109460.0,0.2073458]
[1749559231253,0.003,109470.0,109460.0,0.2073458]
[1749559232327,0.003,109470.0,109460.0,0.20734596]
[1749559232539,0.003,109470.0,109460.0,0.20734598]
[1749559232750,0.003,109470.0,109460.0,0.19022684]
[1749559232958,0.003,109470.0,109460.0,0.20734598]
[1749559233383,0.003,109470.0,109460.0,0.19022684]
[1749559233591,0.003,109470.0,109460.0,0.20735021]
[1749559235051,0.003,109470.0,109460.0,0.19022684]
[1749559235252,0.003,109470.0,109460.0,0.20735024]
[1749559236102,0.003,109470.0,109460.0,0.20735044]
[1749559236834,0.003,109470.0,109460.0,0.10991044]
[1749559237040,0.003,109470.0,109460.0,0.21587224]
[1749559237689,0.003,109470.0,109460.0,0.21587249]
[1749559237895,0.003,109470.0,109460.0,0.20731069]
[1749559238116,0.003,109470.0,109460.0,0.19874876]
[1749559238327,0.003,109470.0,109460.0,0.21587261]
[1749559238817,0.50800105,109470.0,109460.0,0.21587261]
[1749559239253,0.003,109470.0,109460.0,0.20731069]
[1749559239459,0.50800105,109470.0,109460.0,0.20731067]
[1749559239708,0.50800105,109470.0,109460.0,0.21587259]
[1749559240787,0.50800105,109470.0,109460.0,0.21587266]
[1749559241222,0.003,109470.0,109460.0,0.21587266]
[1749559241429,0.50800105,109470.0,109460.0,0.21587266]
[1749559242701,0.003,109470.0,109460.0,0.21587266]
[1749559242905,0.50800105,109470.0,109460.0,0.21587266]
[1749559243112,0.003,109470.0,109460.0,0.21587266]
[1749559243321,0.50800105,109470.0,109460.0,0.21587294]
[1749559243481,0.50800105,109470.0,109460.0,0.21587308]
[1749559243871,0.50800105,109470.0,109460.0,0.21587307]
[1749559244521,0.50800105,109470.0,109460.0,0.21587304]
[1749559245371,0.50800105,109470.0,109460.0,0.20731097]
[1749559245580,0.50800105,109470.0,109460.0,0.21587303]
[1749559247479,0.50800105,109470.0,109460.0,0.21587302]
[1749559248102,0.50800105,109470.0,109460.0,0.21587299]
[1749559248741,0.50800105,109470.0,109460.0,0.20731094]
[1749559248940,0.50800105,109470.0,109460.0,0.21587299]
[1749559250071,0.003,109470.0,109460.0,0.21587299]
[1749559250269,0.003,109470.0,109460.0,0.20731094]
[1749559250270,0.50800105,109470.0,109460.0,0.20731094]
[1749559250476,0.50800105,109470.0,109460.0,0.21587297]
[1749559250608,0.50800105,109470.0,109460.0,0.19018684]
[1749559250803,0.50800105,109470.0,109460.0,0.20731093]
[1749559251003,0.50800105,109470.0,109460.0,0.21587297]
[1749559252221,0.50800105,109470.0,109460.0,0.21587294]
[1749559252632,0.50800105,109470.0,109460.0,0.19874887]
[1749559252829,0.50800105,109470.0,109460.0,0.21587294]
[1749559253517,0.50800105,109470.0,109460.0,0.21587293]
[1749559253780,0.50800105,109470.0,109460.0,0.21583292]
[1749559254321,0.50800105,109470.0,109460.0,0.19870887]
[1749559254783,0.50800105,109470.0,109460.0,0.2072709]
[1749559255005,0.50800105,109470.0,109460.0,0.21583293]
[1749559256050,0.50800105,109470.0,109460.0,0.2072709]
[1749559256266,0.50800105,109470.0,109460.0,0.19870886]
[1749559256471,0.50800105,109470.0,109460.0,0.2158329]
[1749559257088,0.50800105,109470.0,109460.0,0.11847335]
[1749559257298,1.0130021,109470.0,109460.0,0.14289851]
[1749559257482,1.0130021,109470.0,109460.0,0.197697]
[1749559257483,0.50800105,109470.0,109460.0,0.197697]
[1749559257689,0.003,109470.0,109460.0,0.19767569]
[1749559257894,0.50800105,109470.0,109460.0,0.14288985]
[1749559258232,0.50800105,109470.0,109460.0,0.14288946]
[1749559258664,0.50800105,109470.0,109460.0,0.14288879]
[1749559259029,0.50800105,109470.0,109460.0,0.14288872]
[1749559259224,0.50800105,109470.0,109460.0,0.12577087]
[1749559259428,0.50800105,109470.0,109460.0,0.12577049]
[1749559259635,0.50800105,109470.0,109460.0,0.14288748]
[1749559260474,0.50800105,109470.0,109460.0,0.13432899]
[1749559260632,0.50800105,109470.0,109460.0,0.13638872]
[1749559261332,0.003,109470.0,109460.0,0.13638848]
[1749559262022,0.003,109470.0,109460.0,0.64138953]
[1749559262231,0.003,109470.0,109460.0,0.71432437]
[1749559262688,0.003,109470.0,109460.0,0.71432436]
[1749559262902,0.002,109470.0,109460.0,0.71432436]
[1749559263084,0.002,109470.0,109460.0,0.69720762]
[1749559263326,0.002,109470.0,109460.0,0.71432378]
[1749559263537,0.002,109470.0,109460.0,0.71432374]
[1749559263767,0.002,109470.0,109460.0,0.71432351]
[1749559264444,0.002,109470.0,109460.0,1.31067796]
[1749559264662,1.0,109480.0,109470.0,0.50500105]
[1749559264875,1.0,109480.0,109470.0,0.70839399]
[1749559265097,1.0,109480.0,109470.0,0.72655062]
[1749559265518,1.0,109480.0,109470.0,0.70943473]
[1749559265720,1.0,109480.0,109470.0,1.12654039]
[1749559266145,1.001,109480.0,109470.0,1.12654039]
[1749559266359,1.001,109480.0,109470.0,1.12653985]
[1749559266574,1.001,109480.0,109470.0,0.62151576]
[1749559266780,1.001,109480.0,109470.0,1.12651681]
[1749559267189,1.001,109480.0,109470.0,1.10943473]
[1749559267397,1.001,109480.0,109470.0,1.12651553]
[1749559267603,1.001,109480.0,109470.0,1.12651562]
[1749559268661,1.001,109480.0,109470.0,0.62151457]
[1749559268868,1.001,109480.0,109470.0,1.12651562]
[1749559269076,1.001,109480.0,109470.0,1.10943473]
[1749559269317,1.001,109480.0,109470.0,1.12651407]
[1749559269521,1.001,109480.0,109470.0,1.12651404]
[1749559269725,1.001,109480.0,109470.0,1.63151509]
[1749559269933,1.001,109480.0,109470.0,1.12651404]
[1749559270142,1.001,109480.0,109470.0,0.62151299]
[1749559270380,1.001,109480.0,109470.0,1.12649988]
[1749559270804,1.0,109480.0,109470.0,1.12649988]
[1749559270998,1.0,109480.0,109470.0,1.12849812]
[1749559271207,1.0,109480.0,109470.0,1.10943473]
[1749559271407,1.0,109480.0,109470.0,0.60443368]
[1749559271616,1.0,109480.0,109470.0,1.12949817]
[1749559271836,1.0,109480.0,109470.0,1.13149817]
[1749559272269,1.0,109480.0,109470.0,1.12949817]
[1749559272671,1.0,109480.0,109470.0,1.13349817]
[1749559272972,1.0,109480.0,109470.0,1.11643473]
[1749559273397,1.0,109480.0,109470.0,0.62848523]
[1749559273610,1.0,109480.0,109470.0,0.53731668]
[1749559273835,1.0,109480.0,109470.0,1.1661925]
[1749559274465,0.91782816,109480.0,109470.0,1.14914618]
[1749559274675,0.91782816,109480.0,109470.0,1.19996375]
[1749559275104,0.91782816,109480.0,109470.0,1.21700828]
[1749559275308,0.91782816,109480.0,109470.0,0.71200725]
[1749559276155,0.91782816,109480.0,109470.0,0.71200277]
[1749559276374,0.50663066,109490.0,109470.0,0.71200277]
[1749559276579,0.50663066,109490.0,109480.0,0.14588757]
[1749559276839,0.50663066,109490.0,109480.0,0.16292764]
[1749559277249,0.002,109490.0,109480.0,0.16292764]
[1749559278569,0.002,109490.0,109480.0,0.16292499]
[1749559278774,0.002,109490.0,109480.0,0.16692499]
[1749559279440,0.002,109490.0,109480.0,0.16692459]
[1749559280003,0.002,109490.0,109480.0,0.56692459]
[1749559280211,0.002,109490.0,109480.0,0.54988757]
[1749559280415,0.002,109490.0,109480.0,0.56692403]
[1749559281311,0.48163066,109500.0,109480.0,0.56692403]
[1749559281534,0.48163066,109500.0,109490.0,0.13358981]
[1749559281748,0.48163066,109500.0,109490.0,0.15062627]
[1749559281950,0.48163066,109500.0,109490.0,0.14923765]
[1749559282365,0.48163066,109500.0,109490.0,0.14923833]
[1749559282574,0.50663066,109510.0,109490.0,0.14923833]
[1749559282788,0.50463066,109500.0,109490.0,0.14923833]
[1749559284015,0.50463066,109500.0,109490.0,0.14924047]
[1749559284218,0.50463066,109500.0,109490.0,0.15024047]
[1749559284637,0.50463066,109500.0,109490.0,0.20477464]
[1749559285608,0.50463066,109500.0,109490.0,0.2047787]
[1749559286229,0.002,109510.0,109490.0,0.2047787]
[1749559286431,0.002,109510.0,109500.0,0.02727267]
[1749559286634,0.50663066,109510.0,109500.0,0.04431601]
[1749559287048,0.002,109510.0,109500.0,0.0443177]
[1749559287348,0.50663066,109510.0,109500.0,0.04431768]
[1749559287543,0.50663066,109510.0,109500.0,0.08067639]
[1749559287750,0.50763066,109510.0,109500.0,0.08067639]
[1749559287944,0.003,109510.0,109500.0,0.08067639]
[1749559288169,0.50763066,109510.0,109500.0,0.08067639]
[1749559288374,0.48463066,109510.0,109500.0,0.08067639]
[1749559288582,0.50463066,109520.0,109500.0,0.08067639]
[1749559288867,0.50663066,109530.0,109510.0,0.0972]
[1749559289079,0.50663066,109530.0,109510.0,0.17787639]
[1749559289300,0.50663066,109530.0,109520.0,0.02727267]
[1749559289489,0.50663066,109530.0,109520.0,0.04432611]
[1749559289725,0.50663066,109530.0,109520.0,0.04433754]
[1749559290131,0.002,109530.0,109520.0,0.04433754]
[1749559290543,0.50663066,109530.0,109520.0,0.04433754]
[1749559291361,0.50663066,109530.0,109520.0,0.04433383]
[1749559291686,0.50663066,109530.0,109520.0,0.02727267]
[1749559291929,0.50663066,109530.0,109520.0,0.04433382]
[1749559293056,0.50663066,109530.0,109520.0,0.08069734]
[1749559293262,0.50663066,109530.0,109520.0,0.08069725]
[1749559295013,0.50663066,109530.0,109520.0,0.06362248]
[1749559295546,0.50663066,109530.0,109520.0,0.08070733]
[1749559296840,0.50663066,109530.0,109520.0,0.06362248]
[1749559297286,0.50663066,109530.0,109520.0,0.0807051]
[1749559297914,0.50663066,109530.0,109520.0,0.08070357]
[1749559298335,0.002,109530.0,109520.0,0.08070357]
[1749559298559,0.002,109530.0,109520.0,0.05343065]
[1749559298766,0.002,109530.0,109520.0,0.1079647]
[1749559299010,0.002,109530.0,109520.0,0.1079638]
[1749559299206,0.002,109530.0,109520.0,0.07161398]
[1749559299633,0.002,109530.0,109520.0,0.07160824]
[1749559300310,0.002,109530.0,109520.0,0.07160794]
[1749559300990,0.002,109530.0,109520.0,0.07160763]
[1749559301656,0.002,109530.0,109520.0,0.16296103]
[1749559302753,0.002,109530.0,109520.0,0.14588757]
[1749559302955,0.002,109530.0,109520.0,0.16295445]
[1749559303161,0.002,109530.0,109520.0,0.66757883]
[1749559303392,0.002,109530.0,109520.0,0.16294817]
[1749559303597,0.002,109530.0,109520.0,0.16294771]
[1749559303815,0.002,109530.0,109520.0,1.17620903]
[1749559304039,0.002,109530.0,109520.0,1.21284341]
[1749559304249,0.002,109530.0,109520.0,0.34211163]
[1749559304461,0.002,109550.0,109540.0,0.50463066]
[1749559304694,0.002,109550.0,109540.0,0.69566606]
[1749559304879,0.002,109550.0,109540.0,0.78701946]
[1749559305123,0.002,109550.0,109540.0,0.78697912]
[1749559305329,0.002,109550.0,109540.0,1.11428386]
[1749559305539,0.002,109550.0,109540.0,1.14268386]
[1749559305748,0.002,109550.0,109540.0,1.08562603]
[1749559305984,0.002,109550.0,109540.0,1.19828623]
[1749559306187,0.002,109550.0,109540.0,0.71067416]
[1749559306390,0.002,109550.0,109540.0,1.21530482]
[1749559306600,0.002,109550.0,109540.0,0.71067416]
[1749559307016,0.002,109550.0,109540.0,1.21530482]
[1749559307246,0.002,109550.0,109540.0,1.20228623]
[1749559307446,0.002,109550.0,109540.0,1.22228378]
[1749559307658,0.002,109550.0,109540.0,0.70065557]
[1749559308069,0.002,109550.0,109540.0,1.20528623]
[1749559309395,0.002,109550.0,109540.0,0.70065557]
[1749559309816,0.002,109550.0,109540.0,1.20528623]
[1749559310567,0.002,109550.0,109540.0,0.6280334]
[1749559310782,0.002,109550.0,109540.0,1.13266406]
[1749559311217,0.002,109550.0,109540.0,1.20528623]
[1749559311618,0.002,109550.0,109540.0,1.13266406]
[1749559312639,0.002,109550.0,109540.0,0.6280334]
[1749559312893,0.002,109550.0,109540.0,1.13266406]
[1749559317590,0.002,109550.0,109540.0,1.20528623]
[1749559317795,0.002,109550.0,109540.0,1.13266406]
[1749559318916,0.002,109550.0,109540.0,1.20528623]
[1749559319121,0.002,109550.0,109540.0,0.70065557]
[1749559319433,0.002,109550.0,109540.0,1.20528623]
[1749559320193,0.002,109550.0,109540.0,0.70065557]
[1749559320375,0.002,109550.0,109540.0,1.20528623]
[1749559320577,0.002,109550.0,109540.0,0.73092488]
[1749559320815,0.002,109550.0,109540.0,1.23555554]
[1749559321022,0.002,109550.0,109540.0,0.73092488]
[1749559321489,0.002,109550.0,109540.0,1.23555554]
[1749559322384,0.002,109550.0,109540.0,1.26684845]
[1749559323366,0.002,109550.0,109540.0,1.23555554]
[1749559323977,0.004,109580.0,109560.0,0.50463066]
[1749559324159,0.004,109580.0,109570.0,0.1918334]
[1749559324537,0.004,109580.0,109570.0,0.5918334]
[1749559324955,0.50863066,109580.0,109570.0,0.4913534]
[1749559325137,0.50863066,109580.0,109570.0,0.6200334]
[1749559325708,0.005,109580.0,109570.0,0.6200334]
[1749559325908,0.50963066,109580.0,109570.0,0.4913534]
[1749559326112,0.50963066,109580.0,109570.0,0.5916334]
[1749559326312,0.005,109580.0,109570.0,0.5916334]
[1749559326569,0.50963066,109580.0,109570.0,0.5916334]
[1749559328965,0.50963066,109580.0,109570.0,0.1916334]
[1749559329574,0.005,109580.0,109570.0,0.5916334]
[1749559330977,0.49963066,109590.0,109570.0,0.5916334]
[1749559331205,0.50463066,109580.0,109570.0,0.5916334]
[1749559332322,0.50463066,109580.0,109570.0,0.5936334]
[1749559332530,0.50463066,109580.0,109570.0,0.1946334]
[1749559332709,0.50463066,109580.0,109570.0,0.1926334]
[1749559333014,0.50563066,109580.0,109570.0,0.5926334]
[1749559335470,0.001,109580.0,109570.0,0.5926334]
[1749559335672,0.50563066,109580.0,109570.0,0.5926334]
[1749559335976,0.50563066,109580.0,109570.0,0.1926334]
[1749559336434,0.50563066,109580.0,109570.0,0.26551114]
[1749559336611,0.50563066,109580.0,109570.0,0.66551114]